bitfinex/quotes_BTCUSD_20250314
["timestamp","ask_amount","ask_price","bid_price","bid_amount"]
[1741935318742,0.0123361,82184.0,82183.0,0.05588735]
[1741935320101,0.0123361,82184.0,82183.0,0.01018735]
[1741935320316,0.0123361,82184.0,82183.0,0.00918735]
[1741935320531,0.0123361,82184.0,82183.0,0.002]
[1741935320748,0.255536,82180.0,82179.0,0.0003382]
[1741935321411,0.255536,82180.0,82179.0,0.00753234]
[1741935322243,0.243368,82180.0,82179.0,0.00853234]
[1741935322494,0.243368,82180.0,82179.0,0.01053234]
[1741935323891,0.27461361,82180.0,82179.0,0.01053234]
[1741935324113,0.255536,82180.0,82179.0,0.01053234]
[1741935324554,0.255536,82180.0,82179.0,0.0033382]
[1741935325674,0.255536,82180.0,82179.0,0.01648202]
[1741935325900,0.255536,82180.0,82179.0,0.0033382]
[1741935328380,0.27461386,82180.0,82179.0,0.0033382]
[1741935331044,0.27461386,82180.0,82179.0,0.00935687]
[1741935331263,0.27461386,82180.0,82179.0,0.0033382]
[1741935331480,0.27461386,82180.0,82179.0,0.00935687]
[1741935331692,0.27461386,82180.0,82179.0,0.0033382]
[1741935335019,0.27461386,82180.0,82179.0,0.0023382]
[1741935335280,0.27461386,82180.0,82179.0,0.0033382]
[1741935335471,0.27461386,82180.0,82179.0,0.0013382]
[1741935335597,0.27461386,82180.0,82179.0,0.0003382]
[1741935335813,0.27461386,82180.0,82179.0,0.0033382]
[1741935336280,0.27461386,82180.0,82179.0,0.0013382]
[1741935336562,0.27461386,82180.0,82179.0,0.0033382]
[1741935345402,0.27461386,82180.0,82179.0,0.00932927]
[1741935345531,0.27461386,82180.0,82179.0,0.0033382]
[1741935346880,0.27461386,82180.0,82179.0,0.01187202]
[1741935346996,0.01907786,82180.0,82179.0,0.06167202]
[1741935347204,0.03124586,82180.0,82179.0,1.56766309]
[1741935348810,0.03124586,82180.0,82179.0,0.06766309]
[1741935349267,0.03124586,82180.0,82179.0,0.06167202]
[1741935349955,0.03124586,82180.0,82179.0,0.06766068]
[1741935350229,0.03124586,82180.0,82179.0,0.05912686]
[1741935350686,0.03124586,82180.0,82179.0,0.0531382]
[1741935353031,0.03124586,82180.0,82179.0,0.0033382]
[1741935354509,0.33124586,82180.0,82179.0,0.0033382]
[1741935354750,0.312168,82180.0,82179.0,0.0033382]
[1741935355708,0.42703073,82180.0,82179.0,0.0023382]
[1741935355937,0.48423073,82180.0,82179.0,0.0023382]
[1741935356164,0.49473073,82180.0,82179.0,0.0003382]
[1741935356381,0.49473073,82180.0,82179.0,0.0013382]
[1741935356595,0.18256273,82180.0,82179.0,0.0013382]
[1741935356828,0.0677,82180.0,82179.0,0.0003382]
[1741935357360,0.079868,82180.0,82179.0,0.0003382]
[1741935358044,0.09894949,82180.0,82179.0,0.0003382]
[1741935359003,0.10803672,82180.0,82179.0,0.0003382]
[1741935359488,0.243429,82160.0,82153.0,0.243448]
[1741935359607,0.012171,82158.0,82154.0,0.00012309]
[1741935359839,0.012171,82158.0,82155.0,0.00608808]
[1741935360212,0.03125325,82158.0,82155.0,0.00608808]
[1741935360444,0.243437,82157.0,82155.0,0.00608808]
[1741935361016,0.255608,82157.0,82155.0,0.00608808]
[1741935361387,0.012171,82156.0,82155.0,0.01008808]
[1741935361599,0.012171,82156.0,82155.0,0.01308808]
[1741935362235,0.012171,82156.0,82155.0,0.01008808]
[1741935362831,0.012171,82156.0,82155.0,0.00608808]
[1741935363236,0.02521428,82156.0,82155.0,0.01408808]
[1741935363434,0.012171,82156.0,82155.0,0.01408808]
[1741935363634,0.255608,82157.0,82155.0,0.01008808]
[1741935364044,0.01908225,82158.0,82155.0,0.01508808]
[1741935364247,0.0323514,82158.0,82155.0,0.01508808]
[1741935364460,0.0323514,82158.0,82155.0,0.01008808]
[1741935364653,0.0323514,82158.0,82156.0,0.0774]
[1741935364889,0.0323514,82158.0,82157.0,0.00608964]
[1741935366278,0.0323514,82158.0,82157.0,0.00908964]
[1741935367123,0.01908225,82158.0,82157.0,0.02126064]
[1741935367362,0.01908225,82158.0,82157.0,0.02526064]
[1741935367569,0.01908225,82158.0,82157.0,0.07106064]
[1741935369870,0.01908225,82158.0,82157.0,0.05888964]
[1741935373744,0.01925145,82158.0,82157.0,0.05888964]
[1741935376069,0.03142245,82158.0,82157.0,0.05888964]
[1741935376466,0.03142245,82158.0,82157.0,0.0528]
[1741935376668,0.03142245,82158.0,82157.0,0.05930692]
[1741935377116,0.03142245,82158.0,82157.0,0.0528]
[1741935377668,0.01925145,82158.0,82157.0,0.0528]
[1741935377878,0.01925145,82158.0,82157.0,0.064971]
[1741935378082,0.01925145,82158.0,82157.0,0.07147792]
[1741935378853,0.012171,82162.0,82157.0,0.07147792]
[1741935379256,0.012171,82161.0,82157.0,0.05930692]
[1741935379692,0.012171,82161.0,82157.0,0.05530692]
[1741935379880,0.243427,82160.0,82157.0,0.05530692]
[1741935380426,0.25616087,82160.0,82157.0,0.05530692]
[1741935380602,0.26833187,82160.0,82157.0,0.05230692]
[1741935381113,0.243431,82159.0,82157.0,0.05230692]
[1741935381326,0.243431,82159.0,82157.0,0.05430692]
[1741935381456,0.243431,82159.0,82157.0,0.05230692]
[1741935381818,0.243431,82159.0,82157.0,0.05530692]
[1741935382203,0.26833187,82160.0,82157.0,0.05530692]
[1741935382384,0.26833187,82160.0,82157.0,0.05830692]
[1741935382588,0.26833187,82160.0,82157.0,0.05530692]
[1741935382812,0.243431,82159.0,82157.0,0.05930692]
[1741935383334,0.012171,82162.0,82157.0,0.05230692]
[1741935383335,0.243423,82162.0,82157.0,0.05230692]
[1741935383470,0.243426,82161.0,82157.0,0.05230692]
[1741935383676,0.01319865,82162.0,82159.0,0.255598]
[1741935383884,0.243419,82163.0,82160.0,0.00662797]
[1741935384088,0.243422,82162.0,82157.0,0.304407]
[1741935384293,0.243422,82162.0,82161.0,0.0072846]
[1741935384655,0.243422,82162.0,82157.0,0.304407]
[1741935384914,0.243422,82162.0,82161.0,0.0072846]
[1741935385114,0.243422,82162.0,82158.0,0.0072956]
[1741935385334,0.243422,82162.0,82161.0,0.00729524]
[1741935385507,0.243422,82162.0,82157.0,0.304407]
[1741935385688,0.243422,82162.0,82161.0,0.00729524]
[1741935385889,0.243422,82162.0,82157.0,0.306407]
[1741935386099,0.01298453,82162.0,82161.0,0.00729524]
[1741935386310,0.255589,82163.0,82158.0,0.243432]
[1741935386539,0.255589,82163.0,82161.0,0.00929524]
[1741935386747,0.255589,82163.0,82161.0,0.002]
[1741935386890,0.255589,82163.0,82162.0,0.00729512]
[1741935387351,0.255589,82163.0,82161.0,0.003]
[1741935387542,0.255589,82163.0,82158.0,0.243432]
[1741935387543,0.0001692,82162.0,82158.0,0.243432]
[1741935387745,0.0001692,82162.0,82159.0,0.243427]
[1741935388150,0.0001692,82162.0,82158.0,0.255603]
[1741935389005,0.0001692,82162.0,82161.0,0.002]
[1741935389224,0.0001692,82162.0,82158.0,0.255603]
[1741935389450,0.01319159,82162.0,82161.0,0.003]
[1741935390192,0.01319159,82162.0,82159.0,0.243429]
[1741935390370,0.01319159,82162.0,82161.0,0.003]
[1741935390669,0.01319159,82162.0,82161.0,0.005]
[1741935391292,0.01319159,82162.0,82161.0,0.002]
[1741935393468,0.01319159,82162.0,82161.0,0.005]
[1741935394375,0.01319159,82162.0,82161.0,0.01229524]
[1741935396880,0.0001692,82162.0,82161.0,0.34709024]
[1741935397112,0.0001692,82162.0,82161.0,0.39639024]
[1741935397620,0.0001692,82162.0,82161.0,0.53163024]
[1741935398084,0.0001692,82162.0,82161.0,0.39639024]
[1741935398318,0.0001692,82162.0,82161.0,0.52963024]
[1741935398756,0.0001692,82162.0,82161.0,0.53263024]
[1741935398967,0.0001692,82162.0,82161.0,0.52963024]
[1741935399194,0.0001692,82162.0,82161.0,0.53363024]
[1741935399641,0.0001692,82162.0,82161.0,0.39839024]
[1741935399892,0.0001692,82162.0,82161.0,0.53396864]
[1741935400127,0.0001692,82162.0,82161.0,0.55107446]
[1741935400551,0.0001692,82162.0,82161.0,0.5588045]
[1741935401611,0.0001692,82162.0,82161.0,0.5558045]
[1741935401828,0.0001692,82162.0,82161.0,0.5518045]
[1741935402046,0.0001692,82162.0,82161.0,0.5548045]
[1741935402256,0.0001692,82162.0,82161.0,0.5558045]
[1741935402458,0.0001692,82162.0,82161.0,0.5598045]
[1741935402674,0.0001692,82162.0,82161.0,0.5558045]
[1741935403337,0.0001692,82162.0,82161.0,0.4205645]
[1741935403563,0.0001692,82162.0,82161.0,0.5607645]
[1741935405618,0.0001692,82162.0,82161.0,0.4255645]
[1741935405819,0.0001692,82162.0,82161.0,0.5607645]
[1741935409778,0.0001692,82162.0,82161.0,0.4255645]
[1741935409986,0.0001692,82162.0,82161.0,0.5607645]
[1741935411694,0.22351679,82182.0,82176.0,0.012169]
[1741935411893,0.00948253,82184.0,82177.0,0.26327708]
[1741935412864,0.243333,82192.0,82178.0,0.25554]
[1741935413091,0.243333,82192.0,82179.0,0.00773383]
[1741935413092,0.27838779,82185.0,82179.0,0.00773383]
[1741935414196,0.27838779,82185.0,82179.0,0.25110183]
[1741935414403,0.27849759,82185.0,82179.0,0.25110183]
[1741935415468,0.012168,82180.0,82179.0,0.00773383]
[1741935415876,0.012169,82171.0,82162.0,0.012171]
[1741935416079,0.012169,82171.0,82162.0,0.25559]
[1741935416285,0.255565,82171.0,82163.0,0.00773578]
[1741935416484,0.243411,82166.0,82163.0,0.00773578]
[1741935416690,0.255592,82162.0,82161.0,0.0003384]
[1741935416897,0.255592,82162.0,82161.0,0.00807442]
[1741935417108,0.27156695,82162.0,82161.0,0.00807442]
[1741935418938,0.01597495,82162.0,82161.0,0.00807442]
[1741935419196,0.01217,82168.0,82163.0,0.003]
[1741935419395,0.255575,82168.0,82163.0,0.003]
[1741935419604,0.01217,82166.0,82164.0,0.00774341]
[1741935419805,0.01217,82165.0,82164.0,0.00774341]
[1741935420027,0.01217,82163.0,82161.0,0.0093384]
[1741935420499,0.255592,82162.0,82161.0,0.0053384]
[1741935421911,0.255592,82162.0,82161.0,0.0003384]
[1741935422325,0.255592,82162.0,82161.0,0.0023384]
[1741935422458,0.255592,82162.0,82161.0,0.0003384]
[1741935422871,0.255592,82162.0,82161.0,0.0033384]
[1741935423081,0.255592,82162.0,82161.0,0.0063384]
[1741935424323,0.255592,82162.0,82161.0,0.0147339]
[1741935424543,0.255592,82162.0,82161.0,0.0063384]
[1741935424773,0.255592,82162.0,82161.0,0.0147339]
[1741935424974,0.255592,82162.0,82161.0,0.0063384]
[1741935425174,0.255592,82162.0,82161.0,0.0147339]
[1741935425473,0.255592,82162.0,82161.0,0.0063384]
[1741935425880,0.255592,82162.0,82161.0,0.0147339]
[1741935426088,0.255592,82162.0,82161.0,0.0063384]
[1741935426331,0.0123392,82163.0,82161.0,0.0147339]
[1741935426547,0.0001692,82163.0,82162.0,0.138671]
[1741935426993,0.0001692,82163.0,82162.0,0.14828336]
[1741935427404,0.0001692,82163.0,82162.0,1.78226638]
[1741935427612,0.0001692,82163.0,82162.0,1.64706638]
[1741935427816,0.0001692,82163.0,82162.0,1.78226638]
[1741935428064,0.0001692,82163.0,82162.0,1.64706638]
[1741935428259,0.0001692,82163.0,82162.0,1.78226638]
[1741935428669,0.0001692,82163.0,82162.0,1.78726638]
[1741935430039,0.0001692,82163.0,82162.0,1.79126638]
[1741935432731,0.0001692,82163.0,82162.0,2.56422638]
[1741935436506,0.0001692,82163.0,82162.0,2.42902638]
[1741935436738,0.0001692,82163.0,82162.0,2.56418638]
[1741935437199,0.0001692,82163.0,82162.0,2.74356723]
[1741935437638,0.0001692,82163.0,82162.0,2.87872723]
[1741935438059,0.0001692,82163.0,82162.0,2.87372723]
[1741935438264,0.243337,82191.0,82186.0,0.255516]
[1741935438709,0.012166,82190.0,82187.0,0.00838164]
[1741935438918,0.012167,82189.0,82184.0,0.255522]
[1741935439127,0.012167,82189.0,82185.0,0.00838188]
[1741935439343,0.012167,82189.0,82184.0,0.255522]
[1741935439584,0.012167,82189.0,82186.0,0.00838176]
[1741935439803,0.012167,82189.0,82185.0,0.00838188]
[1741935440026,0.012167,82189.0,82187.0,0.00838164]
[1741935440242,0.012167,82189.0,82186.0,0.00838176]
[1741935440430,0.255508,82189.0,82188.0,0.00838152]
[1741935440666,0.012166,82190.0,82184.0,0.255522]
[1741935440667,0.0001691,82193.0,82192.0,0.243332]
[1741935440880,0.0001691,82193.0,82192.0,0.255498]
[1741935441093,0.0001691,82193.0,82192.0,0.26387903]
[1741935442179,0.0001691,82193.0,82192.0,0.00838103]
[1741935442365,0.0001691,82193.0,82192.0,0.00938103]
[1741935442674,0.0001691,82193.0,82192.0,0.013166]
[1741935442936,0.0001691,82193.0,82192.0,0.02151304]
[1741935443168,0.0001691,82193.0,82192.0,0.10411304]
[1741935443418,0.0001691,82193.0,82192.0,0.15101304]
[1741935444083,0.0001691,82193.0,82192.0,0.13784704]
[1741935444311,0.0001691,82193.0,82192.0,0.14901304]
[1741935444539,0.0001691,82193.0,82192.0,0.14084704]
[1741935444757,0.0001691,82193.0,82192.0,0.14384704]
[1741935446075,0.0001691,82193.0,82192.0,0.15601304]
[1741935447206,0.0001691,82193.0,82192.0,0.14384704]
[1741935447638,0.0001691,82193.0,82192.0,0.06224704]
[1741935450459,0.0001691,82193.0,82192.0,0.07441304]
[1741935461385,0.0001691,82193.0,82192.0,1.57441304]
[1741935465452,0.0001691,82193.0,82192.0,1.65451304]
[1741935465898,0.0001691,82193.0,82192.0,1.78963304]
[1741935466114,0.0001691,82193.0,82192.0,1.65051304]
[1741935466572,0.0001691,82193.0,82192.0,1.78563304]
[1741935467236,0.0001691,82193.0,82192.0,1.79163304]
[1741935467413,0.0001691,82193.0,82192.0,1.78863304]
[1741935468084,0.0001691,82193.0,82192.0,1.78263304]
[1741935468294,0.0001691,82193.0,82192.0,1.78863304]
[1741935468501,0.0001691,82193.0,82192.0,1.65351304]
[1741935468817,0.0001691,82193.0,82192.0,1.78863304]
[1741935469028,0.0001691,82193.0,82192.0,1.79463304]
[1741935469240,0.0001691,82193.0,82192.0,1.65951304]
[1741935469898,0.0001691,82193.0,82192.0,1.79463304]
[1741935470124,0.0001691,82193.0,82192.0,1.65951304]
[1741935470844,0.0001691,82193.0,82192.0,1.79463304]
[1741935471079,0.0001691,82193.0,82192.0,2.43219304]
[1741935471321,0.0001691,82193.0,82192.0,2.56731304]
[1741935471728,0.0001691,82193.0,82192.0,2.43219304]
[1741935471931,0.0001691,82193.0,82192.0,2.56731304]
[1741935472574,0.0001691,82193.0,82192.0,2.68701403]
[1741935472781,0.0001691,82209.0,82208.0,0.255449]
[1741935472989,0.00025394,82209.0,82208.0,0.470269]
[1741935473197,0.00025394,82209.0,82208.0,0.52348052]
[1741935473985,0.00025394,82209.0,82208.0,0.5509063]
[1741935474190,0.00025394,82209.0,82208.0,0.5529063]
[1741935474999,0.00025394,82209.0,82208.0,0.52848052]
[1741935475444,0.00025394,82209.0,82208.0,0.01321152]
[1741935476929,0.00025394,82209.0,82208.0,0.02537552]
[1741935477953,0.00025394,82209.0,82208.0,0.01321152]
[1741935478523,0.00025394,82209.0,82208.0,0.02537552]
[1741935480125,0.00025394,82209.0,82208.0,0.01321152]
[1741935480552,0.00025394,82209.0,82208.0,0.02537552]
[1741935480781,0.00025394,82209.0,82208.0,0.01321152]
[1741935481233,0.01241794,82209.0,82208.0,0.01321152]
[1741935481710,0.01241794,82209.0,82208.0,0.005]
[1741935482268,0.01241794,82209.0,82208.0,0.01311026]
[1741935482468,0.01241794,82209.0,82208.0,0.002]
[1741935482708,0.01241794,82209.0,82208.0,0.00811026]
[1741935482908,0.01241794,82209.0,82208.0,0.001]
[1741935483123,0.01241794,82209.0,82208.0,0.00911026]
[1741935483272,0.01241794,82209.0,82208.0,0.001]
[1741935484100,0.012165,82198.0,82192.0,1.09861]
[1741935484327,0.012165,82197.0,82193.0,0.00811208]
[1741935484505,0.243313,82199.0,82194.0,0.255492]
[1741935484708,0.243313,82199.0,82195.0,0.00811184]
[1741935485243,0.012166,82196.0,82195.0,0.00811184]
[1741935485627,0.255495,82193.0,82192.0,0.77268]
[1741935486075,0.255495,82193.0,82192.0,0.77568]
[1741935486283,0.27569184,82193.0,82192.0,0.77568]
[1741935486497,0.02019684,82193.0,82192.0,0.77568]
[1741935486714,0.255479,82199.0,82193.0,0.255495]
[1741935486922,0.243316,82198.0,82193.0,0.255495]
[1741935487139,0.243319,82197.0,82192.0,1.035178]
[1741935487438,0.03293278,82198.0,82193.0,0.255494]
[1741935487612,0.27624978,82198.0,82195.0,0.003]
[1741935487873,0.255486,82196.0,82192.0,0.77768]
[1741935488102,0.255486,82196.0,82192.0,0.77268]
[1741935488321,0.243325,82195.0,82193.0,0.002]
[1741935488523,0.255491,82195.0,82192.0,0.77668]
[1741935489374,0.24332,82196.0,82192.0,0.788846]
[1741935489568,0.255486,82196.0,82192.0,0.77668]
[1741935489847,0.012165,82197.0,82192.0,0.77268]
[1741935490187,0.012165,82197.0,82192.0,0.77668]
[1741935490188,0.24332,82196.0,82192.0,0.77668]
[1741935490449,0.255486,82196.0,82192.0,0.77968]
[1741935490657,0.243325,82195.0,82192.0,0.77968]
[1741935490865,0.255486,82196.0,82192.0,0.77268]
[1741935491073,0.255486,82196.0,82192.0,0.77568]
[1741935491271,0.255486,82196.0,82192.0,0.007]
[1741935491415,0.255486,82196.0,82192.0,0.004]
[1741935491617,0.255486,82196.0,82192.0,0.007]
[1741935491822,0.02076778,82198.0,82197.0,0.012165]
[1741935492030,0.3,82206.0,82202.0,0.012165]
[1741935492234,0.543293,82206.0,82202.0,0.012165]
[1741935492496,0.012165,82202.0,82197.0,0.0467]
[1741935492704,0.012165,82198.0,82197.0,0.0467]
[1741935493108,0.243325,82195.0,82192.0,0.003]
[1741935493552,0.243329,82194.0,82192.0,0.004]
[1741935494205,0.243329,82194.0,82191.0,0.0003382]
[1741935494408,0.012166,82195.0,82192.0,0.003]
[1741935494612,0.243322,82196.0,82192.0,0.24333]
[1741935494819,0.012165,82197.0,82192.0,0.259496]
[1741935494990,0.012165,82197.0,82193.0,0.243327]
[1741935495354,0.255485,82197.0,82192.0,0.259496]
[1741935495564,0.255489,82196.0,82192.0,0.004]
[1741935496473,0.255485,82197.0,82193.0,0.243329]
[1741935496703,0.243323,82196.0,82192.0,0.003]
[1741935496849,0.255481,82198.0,82193.0,0.243329]
[1741935497050,0.012166,82195.0,82192.0,0.004]
[1741935497264,0.25549,82195.0,82192.0,0.007]
[1741935497458,0.25549,82195.0,82192.0,0.0003382]
[1741935497662,0.25549,82195.0,82193.0,0.003]
[1741935498191,0.25549,82195.0,82193.0,0.004]
[1741935498486,0.25549,82195.0,82192.0,0.0033382]
[1741935499229,0.243328,82194.0,82192.0,0.0033382]
[1741935499434,0.255494,82194.0,82193.0,0.00688909]
[1741935499639,0.24332,82196.0,82193.0,0.00688909]
[1741935499840,0.255486,82196.0,82193.0,0.00688909]
[1741935499992,0.012165,82197.0,82193.0,0.03809926]
[1741935500196,0.012165,82197.0,82193.0,0.25421809]
[1741935500398,0.24331,82200.0,82195.0,0.243323]
[1741935500628,0.255475,82200.0,82195.0,0.243323]
[1741935500877,0.243316,82198.0,82196.0,0.00688873]
[1741935501239,0.243316,82198.0,82194.0,0.255491]
[1741935501556,0.243319,82197.0,82195.0,0.005]
[1741935501762,0.012165,82199.0,82196.0,0.00688873]
[1741935502326,0.243317,82197.0,82196.0,0.00688873]
[1741935502573,0.25548,82199.0,82196.0,0.00688873]
[1741935502961,0.243317,82197.0,82196.0,0.00688873]
[1741935503882,0.243317,82197.0,82196.0,0.002]
[1741935504083,0.243317,82197.0,82196.0,0.00577097]
[1741935504300,0.012165,82201.0,82196.0,0.007]
[1741935504458,0.25548,82198.0,82196.0,0.01277097]
[1741935504868,0.243314,82198.0,82196.0,0.01277097]
[1741935505107,0.243301,82203.0,82197.0,0.243317]
[1741935505261,0.25547,82202.0,82197.0,0.255482]
[1741935505461,0.3,82207.0,82200.0,0.012165]
[1741935505673,0.3,82211.0,82206.0,0.255455]
[1741935506058,0.543276,82211.0,82207.0,0.24905924]
[1741935506186,0.543276,82211.0,82207.0,0.00577324]
[1741935506620,0.243272,82213.0,82209.0,0.012164]
[1741935506887,0.02018871,82213.0,82209.0,0.24328]
[1741935507131,0.243268,82214.0,82209.0,0.012164]
[1741935507284,0.243251,82220.0,82215.0,0.243261]
[1741935507495,0.243251,82220.0,82213.0,0.24327]
[1741935507792,0.243254,82219.0,82215.0,0.012163]
[1741935508042,0.25541,82221.0,82215.0,0.255426]
[1741935508402,0.25541,82221.0,82216.0,0.00572832]
[1741935508602,0.27544372,82221.0,82216.0,0.00572832]
[1741935509278,0.012162,82220.0,82216.0,0.00572832]
[1741935509477,0.255413,82220.0,82216.0,0.00572832]
[1741935510000,0.42644832,82224.0,82220.0,0.243246]
[1741935510294,0.00914832,82224.0,82222.0,0.093962]
[1741935510499,0.02130932,82224.0,82221.0,0.00572771]
[1741935510707,0.02130932,82224.0,82219.0,0.243246]
[1741935510708,0.2434111,82223.0,82222.0,0.00570762]
[1741935510920,0.2641137,82223.0,82222.0,0.00570762]
[1741935511126,0.2641137,82223.0,82219.0,0.243246]
[1741935511336,0.2641137,82223.0,82222.0,0.00570762]
[1741935511519,0.2762757,82223.0,82219.0,0.243246]
[1741935511717,0.0208717,82223.0,82222.0,0.00570762]
[1741935512256,0.0208717,82223.0,82219.0,0.243246]
[1741935512480,0.0208717,82223.0,82222.0,0.00570762]
[1741935512658,0.2641117,82223.0,82219.0,0.243246]
[1741935512968,0.243255,82218.0,82217.0,0.0489]
[1741935513179,0.255417,82218.0,82217.0,0.0489]
[1741935513689,0.243252,82219.0,82217.0,0.0489]
[1741935513893,0.25541,82221.0,82217.0,0.0489]
[1741935514118,0.255407,82222.0,82217.0,0.304319]
[1741935514563,0.255407,82222.0,82218.0,0.00570811]
[1741935515344,0.24324,82223.0,82218.0,0.00570811]
[1741935515501,0.255399,82224.0,82218.0,0.24896011]
[1741935515711,0.255405,82223.0,82218.0,0.00570811]
[1741935515909,0.255411,82221.0,82218.0,0.00570811]
[1741935516115,0.012162,82219.0,82218.0,0.00570811]
[1741935516894,0.243249,82222.0,82218.0,0.00570811]
[1741935517106,0.02088095,82223.0,82218.0,0.24896111]
[1741935517310,0.255399,82224.0,82218.0,0.24896111]
[1741935517716,0.012161,82224.0,82219.0,0.243251]
[1741935517930,0.012161,82224.0,82220.0,0.00564432]
[1741935518782,0.243245,82222.0,82218.0,0.001]
[1741935519028,0.02011446,82224.0,82222.0,0.243243]
[1741935519239,0.300169,82226.0,82225.0,0.012161]
[1741935519521,0.300169,82226.0,82224.0,0.243237]
[1741935519721,0.300169,82226.0,82225.0,0.00564371]
[1741935520021,0.300169,82226.0,82222.0,0.243237]
[1741935520239,0.300169,82226.0,82225.0,0.00564371]
[1741935520542,0.300169,82226.0,82225.0,0.00664371]
[1741935520684,0.02037544,82226.0,82225.0,0.001]
[1741935521327,0.02037544,82226.0,82225.0,0.00664371]
[1741935521535,0.02037544,82226.0,82225.0,0.001]
[1741935521689,0.02037544,82226.0,82225.0,0.00764371]
[1741935522125,0.02037544,82226.0,82225.0,0.26303971]
[1741935524749,0.02037544,82226.0,82225.0,0.00764371]
[1741935528006,0.02037544,82226.0,82225.0,0.26303971]
[1741935533695,0.02037544,82226.0,82225.0,0.00764371]
[1741935533909,0.32037544,82226.0,82225.0,0.00764371]
[1741935535620,0.33253644,82226.0,82225.0,0.00764371]
[1741935537103,0.32037544,82226.0,82225.0,0.00764371]
[1741935538410,0.33253644,82226.0,82225.0,0.00764371]
[1741935539087,0.32037544,82226.0,82225.0,0.00764371]
[1741935539314,0.02037544,82226.0,82225.0,0.01980471]
[1741935540019,0.02037544,82226.0,82225.0,0.14310471]
[1741935540020,0.000169,82226.0,82225.0,0.14310471]
[1741935540883,0.000169,82226.0,82225.0,0.14110471]
[1741935541145,0.000169,82226.0,82225.0,0.14410471]
[1741935541380,0.000169,82226.0,82225.0,0.15010471]
[1741935541585,0.000169,82226.0,82225.0,0.14710471]
[1741935541797,0.000169,82226.0,82225.0,0.14110471]
[1741935542005,0.000169,82226.0,82225.0,0.17612616]
[1741935542559,0.000169,82226.0,82225.0,0.15210471]
[1741935545503,0.000169,82226.0,82225.0,0.01664371]
[1741935545504,0.01233,82226.0,82225.0,0.01664371]
[1741935545818,0.01233,82226.0,82225.0,0.011]
[1741935546488,0.01233,82226.0,82225.0,0.005]
[1741935546920,0.01233,82226.0,82225.0,0.009]
[1741935547358,0.01233,82226.0,82225.0,0.004]
[1741935547592,0.255396,82225.0,82224.0,0.000338]
[1741935548916,0.255396,82225.0,82224.0,0.002338]
[1741935550888,0.255396,82225.0,82224.0,0.005338]
[1741935555354,0.26447794,82225.0,82224.0,0.005338]
[1741935555556,0.00908194,82225.0,82224.0,0.005338]
[1741935555733,0.300169,82226.0,82224.0,0.005338]
[1741935555942,0.300169,82226.0,82224.0,0.01094422]
[1741935556735,0.000169,82226.0,82224.0,0.25117922]
[1741935556964,0.000169,82226.0,82224.0,0.00794422]
[1741935557163,0.000169,82226.0,82224.0,0.01094422]
[1741935557343,0.300169,82226.0,82224.0,0.01094422]
[1741935557540,0.300169,82226.0,82224.0,0.00894422]
[1741935557834,0.300169,82226.0,82224.0,0.01094422]
[1741935558044,0.543402,82226.0,82224.0,0.01094422]
[1741935558254,0.555563,82226.0,82224.0,0.01094422]
[1741935559306,0.000169,82226.0,82225.0,0.255396]
[1741935559550,0.000169,82226.0,82225.0,0.2610021]
[1741935559755,0.000169,82226.0,82225.0,0.0056061]
[1741935560972,0.000169,82226.0,82225.0,0.0076061]
[1741935561429,0.000169,82226.0,82225.0,0.0106061]
[1741935562043,0.255562,82226.0,82225.0,0.0106061]
[1741935563515,0.255562,82226.0,82225.0,0.005]
[1741935564530,0.27836116,82226.0,82225.0,0.005]
[1741935572760,0.243229,82227.0,82225.0,0.005]
[1741935573222,0.012161,82226.0,82225.0,0.005]
[1741935573659,0.255393,82226.0,82225.0,0.0131838]
[1741935573870,0.255393,82226.0,82225.0,0.0101838]
[1741935574076,0.255393,82226.0,82225.0,0.0131838]
[1741935574287,0.255393,82226.0,82225.0,0.0111838]
[1741935574523,0.255393,82226.0,82225.0,0.0131838]
[1741935574896,0.255393,82226.0,82225.0,0.0111838]
[1741935575305,0.255393,82226.0,82225.0,0.005]
[1741935575746,0.255393,82226.0,82225.0,0.002]
[1741935575961,0.255393,82226.0,82225.0,0.005]
[1741935579501,0.255384,82230.0,82225.0,0.005]
[1741935579502,0.243214,82232.0,82226.0,0.0797]
[1741935579717,0.00030707,82234.0,82228.0,0.012161]
[1741935579934,0.00768561,82234.0,82229.0,0.255382]
[1741935580153,0.243222,82230.0,82227.0,0.0471]
[1741935580493,0.243224,82229.0,82227.0,0.0471]
[1741935581486,0.3,82232.0,82227.0,0.0481]
[1741935581664,0.012161,82230.0,82227.0,0.0471]
[1741935582001,0.243225,82229.0,82227.0,0.0481]
[1741935582622,0.255386,82229.0,82227.0,0.0501]
[1741935582754,0.3,82233.0,82228.0,0.243224]
[1741935582948,0.000579,82234.0,82229.0,0.255382]
[1741935583357,0.000579,82234.0,82230.0,0.012161]
[1741935583518,0.000579,82234.0,82230.0,0.255379]
[1741935583913,0.000579,82234.0,82231.0,0.01216]
[1741935584342,0.000579,82234.0,82227.0,0.059261]
[1741935584343,0.255371,82233.0,82227.0,0.30349]
[1741935584673,0.255371,82233.0,82227.0,0.30249]
[1741935584901,0.243789,82234.0,82229.0,0.013161]
[1741935585086,0.255949,82234.0,82229.0,0.001]
[1741935585337,0.000579,82234.0,82229.0,0.001]
[1741935585533,0.012161,82230.0,82229.0,0.001]
[1741935586235,0.012161,82228.0,82227.0,0.0471]
[1741935586638,0.012161,82228.0,82227.0,0.0481]
[1741935586986,0.012161,82228.0,82227.0,0.0471]
[1741935587352,0.243223,82229.0,82227.0,0.0471]
[1741935587459,0.243226,82228.0,82227.0,0.0471]
[1741935587663,0.255384,82230.0,82227.0,0.0471]
[1741935587872,0.02283194,82228.0,82227.0,0.0491]
[1741935588069,0.02283194,82228.0,82227.0,0.0521]
[1741935588524,0.02283194,82228.0,82227.0,0.0501]
[1741935589019,0.02283194,82228.0,82227.0,0.0511]
[1741935589228,0.02283194,82228.0,82227.0,0.0501]
[1741935589648,0.02283194,82228.0,82227.0,0.0471]
[1741935590068,0.02283194,82228.0,82227.0,0.0491]
[1741935590503,0.02283194,82228.0,82227.0,0.0471]
[1741935590917,0.06787073,82229.0,82227.0,0.0501]
[1741935591119,0.06787073,82229.0,82227.0,0.0521]
[1741935591543,0.255384,82230.0,82227.0,0.0521]
[1741935591952,0.255384,82230.0,82227.0,0.0501]